fUST/lending_fUST_20250615
["ID","MTS","AMOUNT","RATE_DAILY","PERIOD"]
[365820075,1749937371708,200.297251,0.00013699,2]
[365820097,1749937619590,150.0,0.000189,2]
[365820100,1749937640112,-177.21305236,0.00019986,2]
[365820101,1749937643080,-169.80061446,0.00019986,2]
[365820102,1749937645106,-626.80246448,0.00019986,2]
[365820103,1749937645130,-200.297251,0.00020187,2]
[365820104,1749937645152,-183.359264,0.00020525,2]
[365820105,1749937645174,-172.068765,0.00020627,2]
[365820106,1749937645196,-500.904869,0.00020721,2]
[365820107,1749937645218,-262.58607198,0.00020749,2]
[365820108,1749937645240,-666.0,0.00020774,2]
[365820109,1749937645263,-206.2498761,0.00021154,2]
[365820110,1749937646140,-293.7501239,0.00021154,2]
[365820111,1749937646160,-201.7417138,0.00021174,2]
[365820112,1749937646182,-1324.05,0.00021644,2]
[365820113,1749937646202,-1968.78060174,0.0002168,2]
[365820114,1749937646222,-161.89352068,0.00021817,2]
[365820115,1749937646242,-1200.0,0.00021899,2]
[365820116,1749937646271,-764.85385361,0.000219,6]
[365820117,1749937646292,-300.0,0.00021912,2]
[365820118,1749937646312,-300.0,0.00021913,2]
[365820119,1749937646331,-300.0,0.00021913,2]
[365820120,1749937646351,-300.0,0.00021913,2]
[365820121,1749937646515,-177.714,0.00021916,2]
[365820122,1749937646539,-500.0,0.00021916,2]
[365820123,1749937646564,-500.0,0.00021916,2]
[365820124,1749937646587,-500.0,0.00021916,2]
[365820125,1749937646610,-500.0,0.00021916,2]
[365820126,1749937646633,-274.41172699,0.00021916,2]
[365820127,1749937646654,-251.67605961,0.00021917,4]
[365820176,1749937832324,-192.76450289,0.00020478,2]
[365820178,1749937832334,-300.0,0.0002111,2]
[365820180,1749937832343,-1200.0,0.0002111,2]
[365820182,1749937832353,-300.0,0.0002111,2]
[365820184,1749937832362,-16996.9813019,0.00021111,2]
[365820186,1749937832372,-2643.8350304,0.00021133,2]
[365820188,1749937832381,-500.0,0.00021154,2]
[365820190,1749937832391,-1307.2,0.00021732,2]
[365820192,1749937832400,-153.85728298,0.00021817,2]
[365820194,1749937832409,-1056.48400855,0.000219,6]
[365820196,1749937832418,-1428.70374718,0.00021916,2]
[365820198,1749937832431,-705.54627648,0.00021916,2]
[365820201,1749937832451,-8720.45866634,0.00021916,2]
[365820204,1749937832461,-430.0,0.00021917,4]
[365820206,1749937832470,-430.0,0.00021917,4]
[365820207,1749937832480,-460.0,0.00021917,4]
[365820209,1749937832489,-450.33296573,0.00021917,4]
[365820211,1749937832499,-430.0,0.00021917,4]
[365820213,1749937832508,-430.0,0.00021917,4]
[365820215,1749937832518,-430.0,0.00021917,4]
[365820217,1749937832528,-430.0,0.00021917,4]
[365820219,1749937832539,-430.0,0.00021917,4]
[365820221,1749937832548,-430.0,0.00021917,4]
[365820223,1749937832557,-430.0,0.00021917,4]
[365820225,1749937832567,-430.0,0.00021917,4]
[365820228,1749937832578,-400.89997093,0.00021917,4]
[365820229,1749937832587,-430.0,0.00021917,4]
[365820231,1749937832596,-430.0,0.00021917,4]
[365820233,1749937832605,-460.0,0.00021917,4]
[365820237,1749937832615,-430.0,0.00021917,4]
[365820239,1749937832626,-460.0,0.00021917,4]
[365820241,1749937832636,-501.07368235,0.00021917,4]
[365820243,1749937832647,-430.0,0.00021917,4]
[365820245,1749937832659,-450.0,0.00021917,4]
[365820247,1749937832669,-420.0,0.00021917,4]
[365820249,1749937832678,-430.0,0.00021917,4]
[365820251,1749937832688,-400.0,0.00021917,4]
[365820253,1749937832698,-430.0,0.00021917,4]
[365820255,1749937832708,-451.0360057,0.00021917,4]
[365820257,1749937832719,-460.0,0.00021917,4]
[365820259,1749937832735,-460.0,0.00021917,4]
[365820261,1749937832746,-450.0,0.00021917,4]
[365820263,1749937832756,-351.19887758,0.00021917,4]
[365820265,1749937832765,-460.0,0.00021917,4]
[365820267,1749937832778,-493.24934284,0.00021917,4]
[365820269,1749937832790,-460.0,0.00021917,4]
[365820271,1749937832800,-430.0,0.00021917,4]
[365820273,1749937832810,-430.0,0.00021917,4]
[365820275,1749937832819,-152.89878652,0.00021917,4]
[365820277,1749937832829,-400.0,0.00021917,4]
[365820279,1749937832838,-451.0,0.00021917,4]
[365820281,1749937832848,-587.34241287,0.00021917,4]
[365820283,1749937832857,-460.0,0.00021917,4]
[365820285,1749937832866,-430.0,0.00021917,4]
[365820287,1749937832875,-430.0,0.00021917,4]
[365820289,1749937832884,-400.0,0.00021917,4]
[365820291,1749937832893,-400.0,0.00021917,4]
[365820293,1749937832902,-430.0,0.00021917,4]
[365820294,1749937832911,-454.7468304,0.00021917,4]
[365820295,1749937832919,-430.0,0.00021917,4]
[365820296,1749937832928,-460.0,0.00021917,4]
[365820297,1749937832939,-430.0,0.00021917,4]
[365820298,1749937832948,-460.0,0.00021917,4]
[365820299,1749937832957,-385.23465037,0.00021917,4]
[365820300,1749937832966,-385.56374583,0.00021917,4]
[365820301,1749937832975,-430.0,0.00021917,4]
[365820302,1749937832984,-481.63,0.00021917,4]
[365820303,1749937832993,-430.0,0.00021917,4]
[365820304,1749937833002,-430.0,0.00021917,4]
[365820305,1749937833011,-460.0,0.00021917,4]
[365820306,1749937833020,-460.0,0.00021917,4]
[365820307,1749937833029,-430.0,0.00021917,4]
[365820308,1749937833038,-284.12473251,0.00021917,4]
[365820309,1749937833048,-285.0,0.00021917,4]
[365820310,1749937833058,-430.0,0.00021917,4]
[365820311,1749937833067,-460.0,0.00021917,4]
[365820312,1749937833077,-441.49245202,0.00021917,4]
[365820313,1749937833087,-323.27982967,0.00021917,4]
[365820314,1749937833096,-460.0,0.00021917,4]
[365820315,1749937833105,-430.0,0.00021917,4]
[365820316,1749937833115,-460.0,0.00021917,4]
[365820318,1749937833124,-430.0,0.00021917,4]
[365820320,1749937833133,-400.48370489,0.00021917,4]
[365820322,1749937833142,-460.0,0.00021917,4]
[365820324,1749937833151,-430.0,0.00021917,4]
[365820326,1749937833160,-430.0,0.00021917,4]
[365820328,1749937833169,-430.0,0.00021917,4]
[365820329,1749937833178,-430.0,0.00021917,4]
[365820331,1749937833187,-440.0,0.00021917,4]
[365820333,1749937833196,-440.0,0.00021917,4]
[365820335,1749937833205,-440.0,0.00021917,4]
[365820337,1749937833215,-590.3,0.00021917,4]
[365820339,1749937833227,-500.0,0.00021917,4]
[365820341,1749937833240,-440.0,0.00021917,4]
[365820344,1749937833249,-430.0,0.00021917,4]
[365820347,1749937833258,-452.28820013,0.00021917,4]
[365820349,1749937833268,-400.0,0.00021917,4]
[365820351,1749937833277,-430.0,0.00021917,4]
[365820353,1749937833287,-460.0,0.00021917,4]
[365820354,1749937833296,-440.0,0.00021917,4]
[365820355,1749937833305,-430.0,0.00021917,4]
[365820356,1749937833314,-430.0,0.00021917,4]
[365820358,1749937833325,-460.0,0.00021917,4]
[365820360,1749937833334,-430.0,0.00021917,4]
[365820362,1749937833344,-460.0,0.00021917,4]
[365820364,1749937833353,-430.0,0.00021917,4]
[365820366,1749937833363,-460.0,0.00021917,4]
[365820368,1749937833372,-430.0,0.00021917,4]
[365820370,1749937833382,-430.0,0.00021917,4]
[365820372,1749937833391,-430.0,0.00021917,4]
[365820374,1749937833401,-430.0,0.00021917,4]
[365820376,1749937833410,-430.0,0.00021917,4]
[365820378,1749937833420,-430.0,0.00021917,4]
[365820380,1749937833429,-460.0,0.00021917,4]
[365820382,1749937833439,-430.0,0.00021917,4]
[365820384,1749937833449,-460.0,0.00021917,4]
[365820386,1749937833458,-440.0,0.00021917,4]
[365820388,1749937833468,-460.0,0.00021917,4]
[365820390,1749937833478,-503.38170601,0.00021917,4]
[365820392,1749937833487,-430.0,0.00021917,4]
[365820394,1749937833496,-430.0,0.00021917,4]
[365820396,1749937833506,-440.0,0.00021917,4]
[365820398,1749937833516,-440.0,0.00021917,4]
[365820400,1749937833525,-440.0,0.00021917,4]
[365820402,1749937833535,-413.47130291,0.00021917,4]
[365820404,1749937833545,-440.0,0.00021917,4]
[365820406,1749937833555,-440.0,0.00021917,4]
[365820408,1749937833564,-460.0,0.00021917,4]
[365820410,1749937833575,-440.0,0.00021917,4]
[365820412,1749937833584,-440.0,0.00021917,4]
[365820414,1749937833594,-430.0,0.00021917,4]
[365820416,1749937833604,-430.0,0.00021917,4]
[365820418,1749937833614,-430.0,0.00021917,4]
[365820420,1749937833623,-460.0,0.00021917,4]
[365820422,1749937833633,-460.0,0.00021917,4]
[365820424,1749937833643,-430.0,0.00021917,4]
[365820426,1749937833655,-452.22842123,0.00021917,4]
[365820428,1749937833664,-460.0,0.00021917,4]
[365820430,1749937833674,-401.63623618,0.00021917,4]
[365820432,1749937833683,-460.0,0.00021917,4]
[365820434,1749937833694,-460.0,0.00021917,4]
[365820435,1749937833704,-460.0,0.00021917,4]
[365820437,1749937833714,-460.0,0.00021917,4]
[365820439,1749937833724,-507.37100855,0.00021917,4]
[365820441,1749937833735,-430.0,0.00021917,4]
[365820443,1749937833745,-460.0,0.00021917,4]
[365820444,1749937833754,-460.0,0.00021917,4]
[365820446,1749937833763,-460.0,0.00021917,4]
[365820448,1749937833772,-460.0,0.00021917,4]
[365820449,1749937833782,-460.0,0.00021917,4]
[365820450,1749937833791,-402.64606301,0.00021917,4]
[365820451,1749937833801,-460.0,0.00021917,4]
[365820452,1749937833811,-1000.0,0.00021917,4]
[365820453,1749937833820,-420.0,0.00021917,4]
[365820454,1749937833830,-450.0,0.00021917,4]
[365820455,1749937833839,-460.0,0.00021917,4]
[365820456,1749937833848,-430.0,0.00021917,4]
[365820457,1749937833857,-460.0,0.00021917,4]
[365820458,1749937833867,-430.0,0.00021917,4]
[365820459,1749937833876,-450.0,0.00021917,4]
[365820460,1749937833886,-430.0,0.00021917,4]
[365820461,1749937833895,-450.52192095,0.00021917,4]
[365820462,1749937833904,-460.0,0.00021917,4]
[365820463,1749937833914,-430.0,0.00021917,4]
[365820464,1749937833923,-430.0,0.00021917,4]
[365820465,1749937833932,-430.0,0.00021917,4]
[365820466,1749937833942,-460.0,0.00021917,4]
[365820467,1749937833951,-430.0,0.00021917,4]
[365820468,1749937833961,-402.20580863,0.00021917,4]
[365820469,1749937833970,-460.0,0.00021917,4]
[365820470,1749937833979,-430.0,0.00021917,4]
[365820471,1749937833988,-430.0,0.00021917,4]
[365820472,1749937833997,-450.0,0.00021917,4]
[365820473,1749937834006,-430.0,0.00021917,4]
[365820474,1749937834016,-460.0,0.00021917,4]
[365820475,1749937834025,-430.0,0.00021917,4]
[365820476,1749937834034,-1319.68,0.00021917,4]
[365820477,1749937834043,-430.0,0.00021917,4]
[365820478,1749937834053,-430.0,0.00021917,4]
[365820479,1749937834062,-450.0,0.00021917,4]
[365820480,1749937834073,-460.0,0.00021917,4]
[365820481,1749937834082,-460.0,0.00021917,4]
[365820482,1749937834092,-539.15,0.00021917,4]
[365820483,1749937834101,-460.0,0.00021917,4]
[365820484,1749937834110,-430.0,0.00021917,4]
[365820485,1749937834119,-430.0,0.00021917,4]
[365820486,1749937834128,-460.0,0.00021917,4]
[365820487,1749937834138,-430.0,0.00021917,4]
[365820488,1749937834148,-460.0,0.00021917,4]
[365820489,1749937834157,-430.0,0.00021917,4]
[365820490,1749937834167,-430.0,0.00021917,4]
[365820491,1749937834176,-450.0,0.00021917,4]
[365820492,1749937834186,-460.0,0.00021917,4]
[365820493,1749937834194,-450.0,0.00021917,4]
[365820494,1749937834204,-460.0,0.00021917,4]
[365820495,1749937834213,-430.64807972,0.00021917,4]
[365820496,1749937834222,-440.0,0.00021917,4]
[365820497,1749937834232,-430.0,0.00021917,4]
[365820498,1749937834241,-430.0,0.00021917,4]
[365820499,1749937834250,-460.0,0.00021917,4]
[365820500,1749937834259,-430.0,0.00021917,4]
[365820501,1749937834269,-460.0,0.00021917,4]
[365820502,1749937834278,-492.66225048,0.00021917,4]
[365820503,1749937834287,-460.0,0.00021917,4]
[365820504,1749937834296,-430.0,0.00021917,4]
[365820505,1749937834306,-173.29054747,0.00021917,4]
[365820506,1749937834316,-1021.97,0.00021917,4]
[365820507,1749937834326,-1320.73,0.00021917,4]
[365820508,1749937834335,-460.0,0.00021917,4]
[365820509,1749937834345,-430.0,0.00021917,4]
[365820510,1749937834354,-460.0,0.00021917,4]
[365820511,1749937834366,-2967.96,0.00021917,4]
[365820512,1749937834375,-460.0,0.00021917,4]
[365820513,1749937834384,-460.0,0.00021917,4]
[365820514,1749937834393,-1391.78,0.00021917,4]
[365820515,1749937834402,-450.0,0.00021917,4]
[365820516,1749937834412,-1078.63,0.00021917,4]
[365820517,1749937834420,-460.0,0.00021917,4]
[365820518,1749937834430,-430.0,0.00021917,4]
[365820519,1749937834439,-430.0,0.00021917,4]
[365820520,1749937834449,-155.65,0.00021917,4]
[365820521,1749937834458,-460.0,0.00021917,4]
[365820522,1749937834468,-430.0,0.00021917,4]
[365820523,1749937834478,-430.0,0.00021917,4]
[365820524,1749937834487,-460.0,0.00021917,4]
[365820525,1749937834496,-688.21,0.00021917,4]
[365820526,1749937834506,-430.0,0.00021917,4]
[365820527,1749937834515,-460.0,0.00021917,4]
[365820528,1749937834524,-469.1,0.00021917,4]
[365820529,1749937834533,-460.0,0.00021917,4]
[365820530,1749937834542,-450.0,0.00021917,4]
[365820531,1749937834551,-460.0,0.00021917,4]
[365820532,1749937834560,-430.0,0.00021917,4]
[365820533,1749937834570,-460.0,0.00021917,4]
[365820534,1749937834579,-430.0,0.00021917,4]
[365820535,1749937834588,-430.0,0.00021917,4]
[365820536,1749937834598,-460.0,0.00021917,4]
[365820537,1749937834607,-430.0,0.00021917,4]
[365820538,1749937834616,-430.0,0.00021917,4]
[365820539,1749937834627,-503.58836565,0.00021917,4]
[365820540,1749937834636,-236.64366156,0.00021917,4]
[365820541,1749937834647,-500.0,0.00021917,4]
[365820542,1749937834658,-500.0,0.00021917,4]
[365820543,1749937834667,-500.0,0.00021917,4]
[365820544,1749937834676,-500.0,0.00021917,4]
[365820545,1749937834686,-420.0,0.00021917,4]
[365820546,1749937834695,-500.0,0.00021917,4]
[365820547,1749937834704,-208.32394039,0.00021917,4]
[365820548,1749937834713,-460.0,0.00021917,4]
[365820549,1749937834723,-1121.45,0.00021917,4]
[365820550,1749937834732,-1079.19,0.00021917,4]
[365820551,1749937834742,-594.39,0.00021917,4]
[365820552,1749937834751,-460.0,0.00021917,4]
[365820553,1749937834760,-869.24,0.00021917,4]
[365820554,1749937834770,-460.0,0.00021917,4]
[365820555,1749937834779,-401.04471963,0.00021917,4]
[365820556,1749937834789,-460.0,0.00021917,4]
[365820557,1749937834798,-451.61966294,0.00021917,4]
[365820558,1749937834807,-954.63,0.00021917,4]
[365820559,1749937834816,-430.0,0.00021917,4]
[365820560,1749937834826,-450.0,0.00021917,4]
[365820561,1749937834835,-460.0,0.00021917,4]
[365820562,1749937834844,-431.92347521,0.00021917,4]
[365820563,1749937834854,-460.0,0.00021917,4]
[365820564,1749937834863,-460.0,0.00021917,4]
[365820565,1749937834872,-430.0,0.00021917,4]
[365820566,1749937834881,-460.0,0.00021917,4]
[365820567,1749937834891,-430.0,0.00021917,4]
[365820568,1749937834900,-460.0,0.00021917,4]
[365820569,1749937834909,-430.0,0.00021917,4]
[365820570,1749937834918,-460.0,0.00021917,4]
[365820571,1749937834927,-460.0,0.00021917,4]
[365820572,1749937834936,-749.8,0.00021917,4]
[365820573,1749937834946,-430.0,0.00021917,4]
[365820574,1749937834955,-430.0,0.00021917,4]
[365820575,1749937834964,-380.0,0.00021917,4]
[365820576,1749937834973,-460.0,0.00021917,4]
[365820577,1749937834982,-460.0,0.00021917,4]
[365820578,1749937834991,-460.0,0.00021917,4]
[365820579,1749937835001,-430.0,0.00021917,4]
[365820580,1749937835010,-3389.95,0.00021917,4]
[365820581,1749937835131,-450.0,0.00021917,4]
[365820582,1749937835140,-460.0,0.00021917,4]
[365820583,1749937835150,-460.0,0.00021917,4]
[365820584,1749937835160,-460.0,0.00021917,4]
[365820585,1749937835169,-460.0,0.00021917,4]
[365820586,1749937835179,-450.0,0.00021917,4]
[365820587,1749937835188,-460.0,0.00021917,4]
[365820588,1749937835197,-460.0,0.00021917,4]
[365820589,1749937835206,-1017.16,0.00021917,4]
[365820590,1749937835215,-460.0,0.00021917,4]
[365820591,1749937835225,-3190.39,0.00021917,4]
[365820592,1749937835234,-502.43,0.00021917,4]
[365820593,1749937835243,-430.0,0.00021917,4]
[365820594,1749937835253,-460.0,0.00021917,4]
[365820595,1749937835262,-654.17,0.00021917,4]
[365820596,1749937835272,-173.3084211,0.00021917,4]
[365820597,1749937835281,-460.0,0.00021917,4]
[365820598,1749937835290,-2615.6,0.00021917,4]
[365820599,1749937835300,-1198.46,0.00021917,4]
[365820600,1749937835309,-430.0,0.00021917,4]
[365820601,1749937835318,-430.0,0.00021917,4]
[365820602,1749937835327,-901.06,0.00021917,4]
[365820603,1749937835337,-273.53665206,0.00021917,4]
[365820604,1749937835346,-460.0,0.00021917,4]
[365820605,1749937835355,-460.0,0.00021917,4]
[365820606,1749937835364,-460.0,0.00021917,4]
[365820607,1749937835373,-460.0,0.00021917,2]
[365820608,1749937835383,-460.0,0.00021917,4]
[365820609,1749937835392,-460.0,0.00021917,4]
[365820610,1749937835401,-460.0,0.00021917,4]
[365820611,1749937835410,-460.0,0.00021917,4]
[365820612,1749937835420,-460.0,0.00021917,4]
[365820613,1749937835430,-570.0,0.00021917,4]
[365820614,1749937835439,-3482.98,0.00021917,4]
[365820615,1749937835449,-430.0,0.00021917,4]
[365820616,1749937835458,-1340.88,0.00021917,4]
[365820617,1749937835467,-460.0,0.00021917,4]
[365820618,1749937835476,-568.2,0.00021917,4]
[365820619,1749937835486,-460.0,0.00021917,4]
[365820620,1749937835495,-460.0,0.00021917,4]
[365820621,1749937835504,-430.0,0.00021917,4]
[365820622,1749937835514,-500.0,0.00021917,4]
[365820623,1749937835523,-500.0,0.00021917,4]
[365820624,1749937835533,-500.0,0.00021917,4]
[365820625,1749937835542,-500.0,0.00021917,4]
[365820626,1749937835552,-460.0,0.00021917,4]
[365820627,1749937835562,-500.0,0.00021917,4]
[365820628,1749937835573,-3518.92,0.00021917,4]
[365820629,1749937835583,-250.87192754,0.00021917,4]
[365820630,1749937835592,-460.0,0.00021917,4]
[365820631,1749937835601,-430.0,0.00021917,4]
[365820632,1749937835611,-460.0,0.00021917,4]
[365820633,1749937835620,-460.0,0.00021917,4]
[365820634,1749937835629,-460.0,0.00021917,4]
[365820635,1749937835638,-862.79,0.00021917,4]
[365820636,1749937835651,-3699.35,0.00021917,4]
[365820637,1749937835661,-430.84346304,0.00021917,4]
[365820638,1749937835671,-460.0,0.00021917,4]
[365820639,1749937835680,-460.0,0.00021917,4]
[365820640,1749937835690,-555.7676786,0.00021917,4]
[365820641,1749937835700,-301.74819044,0.00021917,4]
[365820642,1749937835709,-460.0,0.00021917,4]
[365820643,1749937835719,-440.0,0.00021917,4]
[365820644,1749937835730,-460.0,0.00021917,4]
[365820645,1749937835740,-460.0,0.00021917,4]
[365820646,1749937835749,-381.47508225,0.00021917,4]
[365820647,1749937835758,-380.0,0.00021917,4]
[365820648,1749937835767,-430.0,0.00021917,4]
[365820649,1749937835777,-430.0,0.00021917,4]
[365820650,1749937835786,-460.0,0.00021917,4]
[365820651,1749937835796,-460.0,0.00021917,4]
[365820652,1749937835806,-264.69644418,0.00021917,4]
[365820653,1749937835820,-1568.66,0.00021917,4]
[365820654,1749937835829,-460.0,0.00021917,4]
[365820655,1749937835839,-460.0,0.00021917,4]
[365820656,1749937835848,-460.0,0.00021917,4]
[365820657,1749937835857,-391.8984415,0.00021917,4]
[365820658,1749937835867,-460.0,0.00021917,4]
[365820659,1749937835876,-430.0,0.00021917,4]
[365820660,1749937835885,-430.0,0.00021917,4]
[365820661,1749937835894,-708.11,0.00021917,4]
[365820662,1749937835904,-451.16440759,0.00021917,4]
[365820663,1749937835913,-430.0,0.00021917,4]
[365820664,1749937835922,-460.0,0.00021917,4]
[365820665,1749937835931,-460.0,0.00021917,4]
[365820666,1749937835941,-620.85,0.00021917,4]
[365820667,1749937835950,-460.0,0.00021917,4]
[365820668,1749937835960,-2385.13,0.00021917,4]
[365820669,1749937835968,-240.0,0.00021917,4]
[365820670,1749937835978,-460.0,0.00021917,4]
[365820671,1749937835987,-460.0,0.00021917,4]
[365820672,1749937835996,-430.0,0.00021917,4]
[365820673,1749937836006,-460.0,0.00021917,4]
[365820674,1749937836015,-568.93,0.00021917,4]
[365820675,1749937836024,-430.0,0.00021917,4]
[365820676,1749937836034,-2377.54,0.00021917,4]
[365820677,1749937836044,-430.0,0.00021917,4]
[365820678,1749937836053,-450.0,0.00021917,4]
[365820679,1749937836064,-250.0,0.00021917,4]
[365820680,1749937836074,-376.86585796,0.00021917,4]
[365820681,1749937836084,-552.1,0.00021917,4]
[365820682,1749937836093,-452.15563039,0.00021917,4]
[365820683,1749937836102,-183.0,0.00022,2]
[365820684,1749937836112,-1056.48400829,0.00022003,6]
[365820685,1749937836121,-1056.48400829,0.00022107,6]
[365820686,1749937836130,-500.0,0.00022173,2]
[365820687,1749937836140,-500.0,0.00022173,2]
[365820688,1749937836149,-564.10511985,0.00022173,2]
[365820689,1749937836158,-504.43893691,0.00022173,2]
[365820690,1749937836168,-400.0,0.00022191,4]
[365820691,1749937836177,-460.0,0.00022191,4]
[365820692,1749937836186,-400.0,0.00022191,4]
[365820693,1749937836196,-400.0,0.00022191,4]
[365820694,1749937836206,-400.0,0.00022191,4]
[365820695,1749937836216,-540.0,0.00022191,4]
[365820696,1749937836225,-540.0,0.00022191,4]
[365820697,1749937836235,-400.0,0.00022191,4]
[365820698,1749937836244,-460.0,0.00022191,4]
[365820699,1749937836253,-350.0,0.00022191,4]
[365820700,1749937836262,-380.0,0.00022191,4]
[365820701,1749937836272,-460.0,0.00022191,4]
[365820702,1749937836281,-205.06760226,0.00022191,4]
[365820703,1749937836291,-460.0,0.00022191,4]
[365820704,1749937836304,-274.57894625,0.00022191,4]
[365820705,1749937836314,-290.0,0.00022191,4]
[365820706,1749937836325,-590.3,0.00022191,4]
[365820707,1749937836334,-550.0,0.00022191,4]
[365820708,1749937836343,-177.62072255,0.00022191,4]
[365820709,1749937836353,-460.0,0.00022191,4]
[365820710,1749937836362,-460.0,0.00022191,4]
[365820711,1749937836372,-460.0,0.00022191,4]
[365820712,1749937836383,-360.0,0.00022191,4]
[365820713,1749937836393,-460.0,0.00022191,4]
[365820714,1749937836402,-460.0,0.00022191,4]
[365820715,1749937836412,-249.72206538,0.00022191,4]
[365820716,1749937836421,-460.0,0.00022191,4]
[365820717,1749937836430,-460.0,0.00022191,4]
[365820718,1749937836440,-460.0,0.00022191,4]
[365820719,1749937836450,-347.81,0.00022191,4]
[365820720,1749937836460,-460.0,0.00022191,4]
[365820721,1749937836470,-400.0,0.00022191,4]
[365820722,1749937836479,-460.0,0.00022191,4]
[365820723,1749937836489,-400.0,0.00022191,4]
[365820724,1749937836498,-479.70322068,0.00022191,4]
[365820725,1749937836508,-460.0,0.00022191,4]
[365820726,1749937836518,-530.94,0.00022191,4]
[365820727,1749937836527,-460.0,0.00022191,4]
[365820728,1749937836537,-460.0,0.00022191,4]
[365820729,1749937836546,-460.0,0.00022191,4]
[365820730,1749937836555,-460.0,0.00022191,4]
[365820731,1749937836565,-460.0,0.00022191,4]
[365820732,1749937836576,-460.0,0.00022191,4]
[365820733,1749937836585,-460.0,0.00022191,4]
[365820734,1749937836595,-1319.68,0.00022191,4]
[365820735,1749937836605,-410.0,0.00022191,4]
[365820736,1749937836615,-460.0,0.00022191,4]
[365820737,1749937836625,-539.15,0.00022191,4]
[365820738,1749937836634,-460.0,0.00022191,4]
[365820739,1749937836644,-460.0,0.00022191,4]
[365820740,1749937836656,-460.0,0.00022191,4]
[365820741,1749937836665,-460.0,0.00022191,4]
[365820742,1749937836675,-410.0,0.00022191,4]
[365820743,1749937836684,-460.0,0.00022191,4]
[365820744,1749937836694,-360.0,0.00022191,4]
[365820745,1749937836703,-460.0,0.00022191,4]
[365820746,1749937836713,-1021.97,0.00022191,4]
[365820747,1749937836724,-1320.73,0.00022191,4]
[365820748,1749937836734,-460.0,0.00022191,4]
[365820749,1749937836743,-460.0,0.00022191,4]
[365820750,1749937836754,-2967.96,0.00022191,4]
[365820751,1749937836763,-191.45913133,0.00022191,4]
[365820752,1749937836773,-460.0,0.00022191,4]
[365820753,1749937836782,-1391.78,0.00022191,4]
[365820754,1749937836792,-1078.63,0.00022191,4]
[365820755,1749937836802,-460.0,0.00022191,4]
[365820756,1749937836812,-460.0,0.00022191,4]
[365820757,1749937836823,-460.0,0.00022191,4]
[365820758,1749937836832,-688.21,0.00022191,4]
[365820759,1749937836842,-460.0,0.00022191,4]
[365820760,1749937836853,-460.0,0.00022191,4]
[365820761,1749937836863,-460.0,0.00022191,4]
[365820762,1749937836873,-460.0,0.00022191,4]
[365820763,1749937836884,-460.0,0.00022191,4]
[365820764,1749937836894,-1121.45,0.00022191,4]
[365820765,1749937836904,-1079.19,0.00022191,4]
[365820766,1749937836914,-594.39,0.00022191,4]
[365820767,1749937836923,-295.8869076,0.00022191,4]
[365820768,1749937836933,-869.24,0.00022191,4]
[365820769,1749937836943,-460.0,0.00022191,4]